[Event "1st FIDE Olympiad DIS 2023"]
[Site "Belgrade"]
[Date "2023.01.31"]
[Round "2.16"]
[White "Ryvova, Anna"]
[Black "Mendoza, Cheyzer Crystal J."]
[Result "1/2-1/2"]
[ECO "B22"]
[WhiteElo "1823"]
[BlackElo "1639"]
[Annotator "NA RC COMBH"]
[PlyCount "85"]
[EventDate "2023.01.30"]
[EventType "team-tourn"]
[EventCountry "SRB"]
[SourceTitle "playchess.com"]
[Source "ChessBase"]
[SourceQuality "1"]
[WhiteTeam "Czech Republic"]
[BlackTeam "Philippines"]
[WhiteTeamCountry "CZE"]
[BlackTeamCountry "PHI"]
[TimeControl "40/5400+30:1800+30"]

1. e4 {[%emt 0:00:03]} c5 {[%emt 0:00:26]} 2. c3 {[%emt 0:00:05]} d5 {[%emt 0:00:28]} 3. exd5 {[%emt 0:00:29]} Qxd5 {[%emt 0:00:04]} 4. d4 {[%emt 0:00:31]} Nc6 {[%emt 0:01:20]} 5. dxc5 {[%emt 0:03:55]} Qxd1+ {[%emt 0:09:57]} 6. Kxd1 {[%emt 0:00:07]} Nf6 {[%emt 0:00:06]} 7. f3 {[%emt 0:09:26]} Bd7 {[%emt 0:03:30]} (7... Bf5 $15) 8. Be3 {[%emt 0:02:31]} O-O-O {[%emt 0:00:33]} 9. Nd2 {[%emt 0:01:02]} e5 {[%emt 0:03:01]} ({Better is} 9... Nd5 $11 10. Bf2 g6) 10. Ke1 {[%emt 0:01:34]} (10. Bc4 $142) 10... Nd5 {[%emt 0:05:46]} 11. Bf2 {[%emt 0:01:26]} f5 {[%emt 0:01:13]} 12. Ne2 {[%emt 0:15:27]} Be7 {[%emt 0:13:13]} 13. g3 {[%emt 0:05:04]} (13. Rd1 {might be stronger.}) 13... f4 {[%emt 0:06:21]} (13... Be6 $15) 14. Ne4 {[%emt 0:01:11]} Bf5 {[%emt 0:03:51]} (14... Nf6 $11) 15. Bg2 {[%emt 0:02:28]} (15. Rd1 $14) 15... Rhf8 {[%emt 0:17:28]} 16. gxf4 {[%emt 0:08:24]} exf4 {[%emt 0:00:37] [#]} 17. Nd6+ {[%emt 0:06:49]} Bxd6 {[%emt 0:04:38]} 18. cxd6 {[%emt 0:00:07]} Rfe8 {[%emt 0:00:02]} 19. Rd1 {[%emt 0:05:08]} Rxd6 {[%emt 0:06:18]} 20. Rd2 {[%emt 0:03:00]} Red8 {[%emt 0:06:56]} 21. Nd4 {[%emt 0:07:23]} (21. Bd4 $15) 21... Ne3 {[%emt 0:04:19]} 22. Rg1 {[%emt 0:03:21]} Nxd4 {[%emt 0:01:29]} 23. cxd4 {[%emt 0:02:33]} Rc6 {[%emt 0:01:30]} (23... Nc2+ $19 24. Kd1 Nxd4 25. Bxd4 Rxd4 26. Rxd4 Rxd4+ 27. Ke1 Rc4) 24. Bf1 {[%emt 0:07:11]} Re8 {[%emt 0:03:17]} 25. Bb5 {[%emt 0:03:52]} Rc1+ $1 {[%emt 0:03:30]} 26. Ke2 {[%emt 0:00:01]} Rxg1 {[%emt 0:00:09]} 27. Bxg1 {[%emt 0:00:05]} Re7 {[%emt 0:00:58]} 28. Kf2 {[%emt 0:01:53]} g5 {[%emt 0:00:43]} 29. Bd3 {[%emt 0:02:46]} Bd7 {[%emt 0:00:02]} (29... Bxd3 $17 30. Rxd3 b6) 30. Re2 {[%emt 0:00:59]} h5 {[%emt 0:01:45]} 31. Ke1 {[%emt 0:00:11]} ({White should play} 31. d5 $1 $15) 31... Nd5 {[%emt 0:00:17]} 32. Rxe7 {[%emt 0:00:21]} Nxe7 {[%emt 0:00:01]} 33. Be4 {[%emt 0:00:41]} Be6 {[%emt 0:01:00]} 34. a3 {[%emt 0:00:15]} g4 {[%emt 0:00:25]} 35. Bf2 {[%emt 0:00:32]} Nf5 {[%emt 0:01:20]} (35... Bf5 $11) 36. d5 {[%emt 0:02:04]} Bd7 {[%emt 0:00:32]} 37. Bxf5 {[%emt 0:01:20]} (37. Bxa7 $14 g3 38. hxg3 fxg3 39. Kf1) 37... Bxf5 {[%emt 0:00:02]} 38. fxg4 {[%emt 0:00:46]} hxg4 {[%emt 0:00:01]} 39. Bxa7 {[%emt 0:00:21]} Kc7 {[%emt 0:00:50]} 40. Bf2 {[%emt 0:00:07]} Be4 {[%emt 0:00:09]} 41. Kd2 {[%emt 0:30:26]} Kd6 {[%emt 0:31:33]} 42. Ke2 $15 {[%emt 0:00:00]} (42. Ba7 $11) 42... Kxd5 {[%emt 0:00:00]} 43. Be1 {[%emt 0:00:00]} 1/2-1/2

[Event "1st FIDE Olympiad DIS 2023"]
[Site "Belgrade"]
[Date "2023.01.31"]
[Round "2.16"]
[White "Bolotov, Toktobek"]
[Black "Saltik, Suleyman"]
[Result "0-1"]
[ECO "D94"]
[WhiteElo "1437"]
[BlackElo "1687"]
[Annotator "NA RC COMBH"]
[PlyCount "84"]
[EventDate "2023.01.30"]
[EventType "team-tourn"]
[EventCountry "SRB"]
[SourceTitle "playchess.com"]
[Source "ChessBase"]
[SourceQuality "1"]
[WhiteTeam "Kyrgyzstan"]
[BlackTeam "Turkey"]
[WhiteTeamCountry "KGZ"]
[BlackTeamCountry "TUR"]
[TimeControl "40/5400+30:1800+30"]

1. d4 {[%emt 0:00:11]} Nf6 {[%emt 0:00:10]} 2. c4 {[%emt 0:00:10]} g6 {[%emt 0:00:06]} 3. Nc3 {[%emt 0:00:08]} d5 {[%emt 0:00:11]} 4. Nf3 {[%emt 0:00:41]} Bg7 {[%emt 0:00:45]} 5. e3 {[%emt 0:00:29]} O-O {[%emt 0:02:10]} 6. Be2 {[%emt 0:00:19]} c6 {[%emt 0:00:55]} 7. h3 {[%emt 0:00:17]} Nbd7 {[%emt 0:02:57]} 8. cxd5 {[%emt 0:00:58]} cxd5 {[%emt 0:01:55]} 9. Qb3 {[%emt 0:00:16]} Nb6 {[%emt 0:04:55]} 10. O-O {[%emt 0:00:19]} Bf5 {[%emt 0:04:57]} 11. Bd2 {[%emt 0:01:58]} Ne4 {[%emt 0:16:54]} 12. Rac1 {[%emt 0:01:05]} Qd7 {[%emt 0:14:30]} 13. Nxe4 {[%emt 0:01:17]} dxe4 {[%emt 0:01:42]} 14. Nh2 {[%emt 0:00:18]} Be6 {[%emt 0:07:30]} 15. Qa3 {[%emt 0:01:16]} Rfc8 {[%emt 0:04:14]} 16. Rxc8+ {[%emt 0:00:43]} Nxc8 {[%emt 0:01:26]} 17. Rc1 {[%emt 0:00:22]} Nd6 {[%emt 0:00:49]} 18. Qa5 {[%emt 0:00:53]} b6 {[%emt 0:00:36]} 19. Qb4 {[%emt 0:01:26]} Rc8 {[%emt 0:03:47]} 20. Nf1 {[%emt 0:00:44]} Rxc1 {[%emt 0:01:05]} 21. Bxc1 {[%emt 0:00:10]} Qc6 {[%emt 0:00:57]} 22. Qc3 {[%emt 0:01:23]} Qxc3 {[%emt 0:02:18]} 23. bxc3 {[%emt 0:00:03]} Bxa2 {[%emt 0:03:12]} 24. Ba3 {[%emt 0:00:21]} Bd5 {[%emt 0:06:05]} 25. Nd2 {[%emt 0:00:26]} f5 {[%emt 0:01:13]} 26. c4 {[%emt 0:00:26]} Bc6 {[%emt 0:01:47]} 27. g3 {[%emt 0:00:59]} Bh6 {[%emt 0:03:24]} 28. Nb3 {[%emt 0:02:54]} Ba4 {[%emt 0:00:52]} 29. c5 {[%emt 0:00:20]} Bxb3 {[%emt 0:01:16]} 30. cxd6 {[%emt 0:03:28]} exd6 {[%emt 0:00:02]} 31. Bxd6 {[%emt 0:00:02]} Bf8 {[%emt 0:01:02]} 32. Bc7 {[%emt 0:00:40]} Kf7 {[%emt 0:03:21]} 33. Ba6 {[%emt 0:00:17]} Ke6 {[%emt 0:00:21]} 34. Bb8 {[%emt 0:00:14]} Bb4 {[%emt 0:01:48]} 35. Bxa7 {[%emt 0:00:38]} Ba5 {[%emt 0:00:02]} 36. Bb5 {[%emt 0:01:00]} Kd5 {[%emt 0:03:51]} 37. Bb8 {[%emt 0:03:18]} Bc4 {[%emt 0:00:14]} 38. Be8 {[%emt 0:00:34]} b5 {[%emt 0:00:00]} 39. Bf7+ {[%emt 0:02:06]} Kc6 {[%emt 0:00:19]} 40. Bxc4 {[%emt 0:01:40]} bxc4 {[%emt 0:00:09]} 41. Kf1 {[%emt 0:30:57]} c3 {[%emt 0:30:13]} 42. Ba7 {[%emt 0:01:11]} c2 {[%emt 0:00:13]} 0-1

[Event "1st FIDE Olympiad DIS 2023"]
[Site "Belgrade"]
[Date "2023.01.31"]
[Round "2.17"]
[White "Sofran, Radu-Pompiliu"]
[Black "Jankunas, Tomas"]
[Result "0-1"]
[ECO "C24"]
[WhiteElo "2149"]
[BlackElo "2127"]
[Annotator "TA"]
[PlyCount "66"]
[EventDate "2023.01.30"]
[EventType "team-tourn"]
[EventCountry "SRB"]
[SourceTitle "playchess.com"]
[Source "ChessBase"]
[SourceQuality "1"]
[WhiteTeam "Romania"]
[BlackTeam "Lithuania"]
[WhiteTeamCountry "ROU"]
[BlackTeamCountry "LTU"]
[TimeControl "40/5400+30:1800+30"]

{[%evp 9,66,2,12,0,-4,0,-3,-16,-3,-30,-20,-52,-48,-52,-34,-39,-32,-26,-28,-43,-35,-55,-40,-91,-84,-137,-140,-172,-155,-249,-256,-403,-412,-564,-562,-549,-543,-503,-386,-370,-361,-1052,-685,-887,-239,-29993,-29989,-29989,-29990,-29990,-29991,-29991,-29992,-29992,-29993,-29996,-29997,-29997,-29998]} 1. e4 {[%emt 0:00:06]} e5 {[%emt 0:00:05]} 2. Bc4 {[%emt 0:00:21]} Nf6 {[%emt 0:00:21]} 3. d3 {[%emt 0:00:43]} Nc6 {[%emt 0:02:10]} 4. c3 {[%emt 0:01:42]} Bc5 {[%emt 0:03:14]} 5. Bg5 {[%emt 0:01:31] [#]} a6 $146 {[%emt 0:05:50]} ({Predecessor:} 5... Be7 6. Qf3 d6 7. h3 O-O 8. Ne2 Na5 9. Ng3 Nxc4 10. dxc4 Be6 11. Na3 Nd7 {0-1 Fedorchuk,S (2621)-Erturan,Y (2367) EU-ch 18th Minsk 2017 (3)}) 6. Qf3 {[%emt 0:01:09] C24: Bishop's Opening: 2...Nf6.} Be7 {[%emt 0:01:26]} 7. Ne2 {[%emt 0:00:34]} Na5 {[%emt 0:02:27]} 8. Nd2 {[%emt 0:00:41] The position is equal.} d6 {[%emt 0:03:06]} 9. Bxf6 {[%emt 0:01:30]} Bxf6 {[%emt 0:00:10]} 10. b4 {[%emt 0:02:13]} Nxc4 {[%emt 0:01:57]} 11. Nxc4 {[%emt 0:00:15]} Be6 {[%emt 0:02:10]} 12. Ne3 {[%emt 0:00:34]} c6 {[%emt 0:03:15]} 13. O-O {[%emt 0:01:05]} O-O {[%emt 0:01:34]} 14. h3 {[%emt 0:05:08]} g6 {[%emt 0:04:07]} 15. a4 {[%emt 0:02:17]} Bg7 {[%emt 0:04:21]} 16. a5 {[%emt 0:01:47]} (16. Qg3 $15) 16... f5 $17 {[%emt 0:00:53] White must now prevent ...fxe4. Black converts the advantage convincingly.} 17. exf5 {[%emt 0:03:59]} (17. d4 $142) 17... gxf5 {[%emt 0:02:02] ...f4 would be deadly.} ({Weaker is} 17... Bxf5 18. Nxf5 Rxf5 19. Qe3 $15) 18. Nc4 {[%emt 0:07:21] [#]} Bd5 $1 $36 {[%emt 0:09:40][%mdl 2048] Black has strong initiative.} 19. Qe3 {[%emt 0:00:26]} (19. Qh5 $17 {is a better defense.}) 19... f4 $19 {[%emt 0:00:26]} 20. Qd2 {[%emt 0:00:03]} (20. Qb6 $142) 20... f3 {[%emt 0:00:43][%cal Of3g2] And now ...fxg2! would win.} 21. Ng3 {[%emt 0:00:42]} fxg2 {[%emt 0:01:06]} 22. Rfe1 {[%emt 0:00:14]} Qh4 {[%emt 0:01:23][%csl LRc4,LRh3]} 23. Ne3 {[%emt 0:02:53]} Qxh3 {[%emt 0:04:56] ( -> ...Qh1+)} 24. Nxd5 {[%emt 0:00:47]} cxd5 {[%emt 0:00:23]} 25. Qg5 $2 {[%emt 0:00:14]} (25. Qa2 Qe6 26. d4) 25... Rf3 {[%emt 0:02:26][%cal Of3g3] Hoping for ...Rxg3!} 26. Re3 {[%emt 0:03:07] [#]} Rxg3 {[%emt 0:00:21]} 27. fxg3 $2 {[%emt 0:00:08]} (27. Qxg7+ $19 Rxg7 28. Rxh3) 27... Qh1+ {[%emt 0:00:03] Black mates.} 28. Kf2 {[%emt 0:00:02]} Rf8+ {[%emt 0:00:18]} 29. Rf3 {[%emt 0:02:45]} Rxf3+ {[%emt 0:00:18][%mdl 64] Deflection} 30. Kxf3 {[%emt 0:00:02]} g1=Q+ {[%emt 0:00:09]} 31. Kg4 {[%emt 0:00:04]} h5+ {[%emt 0:01:09]} 32. Kf5 {[%emt 0:00:45]} Qh3+ {[%emt 0:01:24]} 33. Kg6 {[%emt 0:00:47]} Qe6+ {[%emt 0:00:05] A cool game by Jankunas.   Weighted Error Value: White=0.75/Black=0.56} 0-1

[Event "1st FIDE Olympiad DIS 2023"]
[Site "Belgrade"]
[Date "2023.01.31"]
[Round "2.17"]
[White "Soundarya Kumar Pradhan"]
[Black "Morales Romero, Pedro"]
[Result "0-1"]
[ECO "E41"]
[WhiteElo "1881"]
[BlackElo "2339"]
[Annotator "TA"]
[PlyCount "48"]
[EventDate "2023.01.30"]
[EventType "team-tourn"]
[EventCountry "SRB"]
[SourceTitle "playchess.com"]
[Source "ChessBase"]
[SourceQuality "1"]
[WhiteTeam "India"]
[BlackTeam "Cuba"]
[WhiteTeamCountry "IND"]
[BlackTeamCountry "CUB"]
[TimeControl "40/5400+30:1800+30"]

{[%evp 17,48,22,51,-27,-30,-39,-31,-74,-76,-102,-95,-100,-101,-169,-164,-183,-91,-280,-285,-297,-297,-368,-361,-462,-464,-1087,-1054,-1270,-833,-5512,-5512,-5418,-5285]} 1. d4 {[%emt 0:00:10]} Nf6 {[%emt 0:00:21]} 2. c4 {[%emt 0:00:30]} e6 {[%emt 0:00:45]} 3. Nc3 {[%emt 0:00:32]} Bb4 {[%emt 0:00:18]} 4. e3 {[%emt 0:00:30]} c5 {[%emt 0:00:20]} 5. Bd3 {[%emt 0:01:22]} Bxc3+ {[%emt 0:00:54]} 6. bxc3 {[%emt 0:00:02]} Nc6 {[%emt 0:00:11]} 7. Ne2 {[%emt 0:03:01]} d6 {[%emt 0:00:52]} 8. O-O {[%emt 0:00:53]} O-O {[%emt 0:01:32]} 9. e4 {[%emt 0:00:56]} e5 {[%emt 0:01:09][%cal Re5d4]} 10. f4 {[%emt 0:04:05] E41: Nimzo-Indian: Rubinstein: 4...c5 5 Bd3, including Hübner Variation.} (10. d5 $14 Ne7 11. f3) 10... exd4 $11 {[%emt 0:03:20]} 11. cxd4 {[%emt 0:01:09]} cxd4 {[%emt 0:07:56]} 12. Bb2 {[%emt 0:04:45] [#] Black is slightly better.} Bg4 $146 {[%emt 0:07:15]} ({Predecessor:} 12... Re8 13. Ng3 Ng4 14. Qd2 Qh4 15. h3 Qxg3 16. hxg4 Bxg4 17. Rae1 Re6 18. Be2 Rae8 19. Bxg4 Qxg4 {0-1 Aghasiyev,K (2441)-Barria Zuniga,D (2341) Titled Tuesday intern op 19th Jul Late blitz 2022 (8)}) 13. Qe1 {[%emt 0:09:03]} Bxe2 {[%emt 0:07:50]} 14. Qxe2 {[%emt 0:00:00]} Re8 {[%emt 0:00:15]} 15. g4 {[%emt 0:03:33] [#]} (15. Rae1 $17) 15... Qb6 $1 $19 {[%emt 0:06:07][%cal Of6e4]} 16. Kh1 {[%emt 0:03:48]} Re7 {[%emt 0:08:07]} (16... Nxg4 $19 {[%cal Oc6b4] has better winning chances. White must now prevent ...Nb4!} 17. Rg1 Nf6) 17. Ba3 $2 {[%emt 0:10:16] [#] Now White is beyond hope.} (17. g5 $17 Nd7 18. Ba3) 17... Nxe4 $1 {[%emt 0:05:32][%cal Oe4g3][%mdl 512]} 18. Bxe4 {[%emt 0:00:33]} (18. Rab1 Ng3+) 18... Rae8 {[%emt 0:00:09]} 19. Bxh7+ {[%emt 0:00:57]} Kxh7 {[%emt 0:00:14]} 20. Qc2+ {[%emt 0:08:26]} Kg8 {[%emt 0:04:02] Black is clearly winning.} 21. Bxd6 {[%emt 0:11:54]} (21. Qf2 $142) 21... Re2 {[%emt 0:04:26]} 22. Qf5 {[%emt 0:01:15]} Qd8 {[%emt 0:02:52] ( -> ...Qh4)} 23. Qd5 {[%emt 0:03:11]} Qh4 {[%emt 0:01:13][%csl Ge2,LRg4,LRh2][%cal Rh4h2]} 24. f5 {[%emt 0:10:12] [#]} R8e5 $1 {[%emt 0:00:38][%mdl 512] Weighted Error Value: White=1.27/Black=0.52} 0-1

[Event "1st FIDE Olympiad DIS 2023"]
[Site "Belgrade"]
[Date "2023.01.31"]
[Round "2.18"]
[White "Larduet Despaigne, Carlos"]
[Black "Shashikant, Kutwal"]
[Result "0-1"]
[ECO "A65"]
[WhiteElo "2277"]
[BlackElo "2182"]
[Annotator "TA"]
[PlyCount "180"]
[EventDate "2023.01.30"]
[EventType "team-tourn"]
[EventCountry "SRB"]
[SourceTitle "playchess.com"]
[Source "ChessBase"]
[SourceQuality "1"]
[WhiteTeam "Cuba"]
[BlackTeam "India"]
[WhiteTeamCountry "CUB"]
[BlackTeamCountry "IND"]
[TimeControl "40/5400+30:1800+30"]

{[%evp 16,180,23,19,63,54,49,47,53,38,41,33,60,56,73,0,0,0,0,-99,-98,-121,-114,-124,-99,-141,-141,-185,-121,-130,-114,-118,-120,-122,-113,-143,-118,-217,-225,-203,-225,-209,-127,-163,-169,-166,-154,-156,-118,-197,-182,-175,-106,-104,-116,-114,-126,-136,-119,-237,-223,-216,-69,-108,-85,-85,-85,-85,0,-107,0,-74,-74,-74,-74,-74,-74,-74,-74,-74,-74,-74,-40,-90,-54,-73,-68,-677,-685,-685,-685,-677,-666,-646,-639,-633,-633,-614,-602,-639,-653,-670,-630,-962,-936,-908,-885,-4196,-2713,-29976,-29977,-29976,-29961,-29961,-1919,-29963,-29966,-29966,-29965,-29960,-5967,-29948,-12824,-29972,-29973,-29974,-29975,-29975,-29975,-29978,-29979,-29979,-5960,-5883,-5952,-5952,-5945,-5938,-5931,-5923,-5923,-5909,-5854,-5894,-5894,-5890,-5854,-5854,-5854,-5854,-5843,-5854,-5854,-5825,-1709,-1463,-1109,-5846,-5832,-5817,-5825,-5817,-5810,-5615,-5589,-1744,-1493]} 1. c4 {[%emt 0:00:07]} Nf6 {[%emt 0:00:20]} 2. Nc3 {[%emt 0:00:14]} g6 {[%emt 0:00:12]} 3. e4 {[%emt 0:01:00]} d6 {[%emt 0:00:25]} 4. d4 {[%emt 0:00:10]} Bg7 {[%emt 0:00:14]} 5. f3 {[%emt 0:00:12]} O-O {[%emt 0:00:28]} 6. Nge2 {[%emt 0:00:10]} c5 {[%emt 0:03:28]} 7. d5 {[%emt 0:00:11]} e6 {[%emt 0:01:11]} 8. Ng3 {[%emt 0:01:52]} exd5 {[%emt 0:03:03]} 9. cxd5 {[%emt 0:00:02]} (9. Nxd5 Nxd5 10. cxd5 f5 $17) 9... Bd7 {[%emt 0:04:52] A65: Modern Benoni: 6 e4.} 10. Bg5 {[%emt 0:01:23]} Na6 {[%emt 0:03:06][%cal Bb8a6,Ba6c7,Bc7b5,Bb5d4][%mdl 32]} 11. Qd2 {[%emt 0:00:30]} Nc7 {[%emt 0:02:46] White is slightly better.} 12. Be2 {[%emt 0:10:33]} b5 {[%emt 0:02:04]} 13. O-O {[%emt 0:05:04]} b4 {[%emt 0:01:49]} 14. Nd1 {[%emt 0:00:02] [#]} Nb5 $146 {[%emt 0:01:35]} ({Predecessor:} 14... Bb5 15. Bh6 Bxh6 16. Qxh6 Bxe2 17. Nxe2 Re8 18. Ng3 Nd7 19. f4 Qf6 20. Kh1 Nb5 {½-½ Covlea,V (2250)-Dinu,G (2225) Bucharest Cup IM 1998}) 15. Qf4 {[%emt 0:09:50]} ({White should try} 15. Bc4 $16) 15... Nxd5 $1 $11 {[%emt 0:07:08]} 16. exd5 {[%emt 0:00:27]} f6 {[%emt 0:00:14][%cal Bf7f6,Bf6f5][%mdl 32]} 17. Bh4 {[%emt 0:10:43]} (17. Bh6 $11 g5 18. Qd2 Bxh6 19. Bxb5 Bxb5 20. Nf5) 17... g5 $17 {[%emt 0:00:45][%mdl 64] Deflection, Double Attack} 18. Qd2 {[%emt 0:00:24]} gxh4 {[%emt 0:02:07]} 19. Nh5 {[%emt 0:00:52]} Nd4 {[%emt 0:02:39] And now ...Qe8 would win.} 20. Bd3 {[%emt 0:04:27]} f5 {[%emt 0:11:16]} 21. Nf2 {[%emt 0:04:27]} Qe8 {[%emt 0:11:33]} (21... Be5 $19 {...f4 would be deadly.} 22. Qh6 Be8) 22. Nxg7 {[%emt 0:03:33]} Kxg7 {[%emt 0:02:15]} 23. Nh3 {[%emt 0:02:11]} Qg6 {[%emt 0:01:24] Active counter play!} 24. Qf4 {[%emt 0:09:45]} Qf6 {[%emt 0:00:41]} 25. Rfe1 {[%emt 0:06:51]} Rae8 {[%emt 0:01:11]} 26. Qg5+ {[%emt 0:04:10]} (26. Kh1 $17) 26... Qxg5 $19 {[%emt 0:03:54]} 27. Nxg5 {[%emt 0:00:02]} h6 {[%emt 0:02:14]} 28. Nh3 {[%emt 0:00:05]} Re5 {[%emt 0:04:21]} 29. Nf4 {[%emt 0:00:24]} Rfe8 {[%emt 0:00:47]} 30. Red1 {[%emt 0:01:05]} a5 {[%emt 0:01:27][%cal Ba7a5,Ba5a4][%mdl 32]} 31. Kf2 {[%emt 0:02:25]} Kf7 {[%emt 0:03:39]} 32. Rac1 {[%emt 0:00:36]} (32. Bc4 $17 {was worth a try.}) 32... a4 {[%emt 0:03:12][%cal Oh4h3]} 33. Bf1 {[%emt 0:01:17] [#]} Bb5 {[%emt 0:03:12]} (33... Re3 $1 $19 {[%cal Oh4h3] aiming for ...h3!} 34. Bc4 a3) 34. Rxd4 $17 {[%emt 0:02:08]} Bxf1 {[%emt 0:00:25]} 35. Rd2 {[%emt 0:00:40]} Ba6 {[%emt 0:08:23]} 36. g3 {[%emt 0:00:05] [#]} h3 $1 {[%emt 0:04:32]} 37. Ra1 {[%emt 0:05:47]} (37. Rdc2 $17 {was necessary.}) 37... Bc4 $19 {[%emt 0:01:50]} 38. a3 {[%emt 0:02:38]} Bb3 {[%emt 0:01:42]} (38... bxa3 $19 {Threatens to win with ...a2.} 39. Rxa3 Re1) 39. Rc1 {[%emt 0:02:41]} bxa3 {[%emt 0:00:22]} 40. bxa3 {[%emt 0:00:03]} Rb8 {[%emt 0:00:43]} 41. Rc3 {[%emt 0:31:20]} Rbe8 {[%emt 0:30:47]} 42. Rc1 {[%emt 0:00:10] Repels Re1} Re3 {[%emt 0:00:00]} (42... Rd8 $17) 43. Nxh3 {[%emt 0:00:00]} (43. Ne6 $11 {keeps the balance.} Re5 44. Nf4) 43... c4 $17 {[%emt 0:00:00][%cal Bc5c4,Bc4c3,Bc3c2][%mdl 32]} 44. Nf4 {[%emt 0:00:07]} c3 {[%emt 0:00:59]} 45. Rd4 {[%emt 0:00:00]} c2 $36 {[%emt 0:00:00][%cal Oe3e1][%mdl 2048] Keeping White busy.} 46. Rd2 {[%emt 0:00:00]} Rc3 {[%emt 0:00:00] Hoping for ...Ree3.} 47. Ne2 {[%emt 0:00:00]} Rc5 {[%emt 0:00:00]} 48. Nf4 {[%emt 0:00:00]} Rec8 {[%emt 0:00:00]} 49. h4 {[%emt 0:00:00]} (49. Rd3 $15) 49... Ba2 {[%emt 0:00:00]} 50. Rd4 {[%emt 0:00:00]} Rb8 {[%emt 0:00:00] ...Rb1 is the strong threat.} 51. Rd3 $2 {[%emt 0:00:00][%mdl 8192] Now White is beyond hope.} (51. Rxa4 Rb1 52. Ne2 (52. Ra7+ $2 Kf6 $19) 52... Bxd5 $17) (51. Ke1 $15) 51... Rb1 $19 {[%emt 0:00:00]} 52. Ne2 {[%emt 0:00:53]} Bc4 {[%emt 0:00:00]} 53. Rc3 {[%emt 0:01:22]} Bxe2 {[%emt 0:00:12][%mdl 64] Discovered Attack} (53... Bxd5 54. R1xc2 Rb3 55. Rxc5 dxc5 56. Rxc5 Rxf3+ 57. Ke1 $11) 54. Rxc5 {[%emt 0:00:15]} dxc5 {[%emt 0:00:29]} 55. Rxc2 {[%emt 0:00:09][%mdl 4096] Endgame KRB-KR} Bd1 {[%emt 0:00:45]} 56. Rxc5 {[%emt 0:00:11]} Rb3 {[%emt 0:01:07][%csl LRa3,LRf3]} 57. Rc7+ {[%emt 0:03:32]} Kf6 {[%emt 0:00:26]} 58. Rc6+ {[%emt 0:00:29]} Ke5 {[%emt 0:00:14]} 59. f4+ {[%emt 0:00:36]} Kxd5 {[%emt 0:00:32]} 60. Rxh6 {[%emt 0:00:02]} Rxa3 {[%emt 0:00:48] Strongly threatening ...Ra2+.} 61. h5 {[%emt 0:00:13]} Ra2+ {[%emt 0:00:39]} 62. Ke1 {[%emt 0:02:35]} Bg4 {[%emt 0:00:12]} 63. Rh8 {[%emt 0:00:20]} Rh2 {[%emt 0:00:34]} 64. Ra8 {[%emt 0:00:56]} Rxh5 {[%emt 0:00:20]} (64... Bxh5 $142 65. Rxa4 Bg4 66. Kf1 Bh3+ 67. Ke1 Rg2 68. Kd1 Bg4+ 69. Kc1 Rxg3 70. Kd2 Rf3 71. Kc2 Kc5 72. Kd2 Kb5 73. Rd4 Ra3 74. Rd7 Kc5 75. Rd8 Rf3 76. Ke2 Kc4 77. Kd2 Rxf4 78. Ke1 Kc5 79. Rg8 Kd4 80. Rc8 Rf3 81. Rh8 Ke4 82. Rh2 Rh3 83. Rf2 Ke3 84. Re2+ Kf4 85. Rg2 Re3+ 86. Kd2 Re2+ {[%mdl 64] Deflection} 87. Rxe2 Bxe2 88. Kxe2 Kg3 89. Ke3 f4+ 90. Ke2 f3+ 91. Ke1 Kg2 92. Kd2 f2 93. Kc3 f1=Q 94. Kb4 Kf3 95. Kc5 Ke4 96. Kd6 Qb5 97. Ke6 Qc6+ 98. Kf7 Kf5 99. Kg8 Qc7 100. Kh8 Kg6 101. Kg8 Qg7#) 65. Rxa4 {[%emt 0:00:19]} Rh2 {[%emt 0:00:06]} 66. Kf1 {[%emt 0:00:26]} Rc2 {[%emt 0:00:20]} 67. Ke1 {[%emt 0:00:40]} Rc4 {[%emt 0:00:14]} (67... Re2+ $142 68. Kf1 Rd2 69. Ke1 Rg2 70. Ra5+ Ke6 71. Re5+ Kf7 72. Re3 Bh3 73. Re5 Kg6 74. Kf1 Rxg3+ 75. Kf2 Rc3 76. Re8 Bg4 77. Kg2 Rf3 78. Rg8+ Kf7 79. Ra8 Rxf4 80. Kg3 Rd4 81. Ra6 Bd1 82. Ra7+ Kf6 83. Kh3 f4 84. Ra8 f3 85. Kg3 Rd2 86. Rc8 Rg2+ 87. Kf4 f2 88. Ke3 Kf7 89. Rc7+ Kg6 90. Rc6+ Kg5 91. Rc5+ Kg6 92. Rc6+ Kg5 93. Rc5+ Kg6 94. Rc6+) 68. Ra2 {[%emt 0:00:26]} Ke4 {[%emt 0:00:10]} 69. Kf2 {[%emt 0:00:23]} Kd3 {[%emt 0:00:10]} 70. Ra5 {[%emt 0:01:40]} Rc2+ {[%emt 0:00:05]} 71. Kf1 {[%emt 0:00:24]} Rd2 {[%emt 0:00:22]} 72. Ra3+ {[%emt 0:00:31]} Ke4 {[%emt 0:00:03]} 73. Ra7 {[%emt 0:03:32]} Rd3 {[%emt 0:00:23]} (73... Ke3 $142 74. Re7+ Kf3 75. Ke1 Rd3 76. Re2 Re3 77. Rxe3+ Kxe3 78. Kf1 Kf3 79. Ke1 Kxg3 80. Kf1 Kxf4 81. Kf2 Bh3 82. Ke2 Ke4 83. Kd2 f4 84. Ke2 f3+ 85. Kf2 Be6 86. Kg3 Ke3 87. Kh4 f2 88. Kg5 f1=Q 89. Kh5 Qf7+ 90. Kg5 Qg7+ 91. Kh5 Kf4 92. Kh4 Qh8#) 74. Kf2 {[%emt 0:00:15] Black is clearly winning.} Rf3+ {[%emt 0:00:08]} 75. Kg2 {[%emt 0:00:10]} Rb3 {[%emt 0:00:08]} 76. Re7+ {[%emt 0:00:13]} Kd3 {[%emt 0:00:04]} 77. Rd7+ {[%emt 0:01:01]} Ke2 {[%emt 0:00:06] ( -> ...Rb2)} 78. Re7+ {[%emt 0:00:49]} Re3 {[%emt 0:00:08]} 79. Ra7 {[%emt 0:00:15]} Bf3+ {[%emt 0:00:18]} 80. Kh3 {[%emt 0:00:26]} Kf2 {[%emt 0:00:18]} 81. Kh4 {[%emt 0:00:18]} Bg4 {[%emt 0:01:18]} 82. Ra5 {[%emt 0:02:14]} Rb3 {[%emt 0:00:58]} ({And not} 82... Rxg3 83. Ra2+ Be2 84. Rxe2+ Kxe2 85. Kxg3 $11) 83. Rc5 {[%emt 0:00:19]} Rb8 {[%emt 0:00:18]} ({Not} 83... Rxg3 84. Rc2+ Be2 85. Rxe2+ Kxe2 86. Kxg3 $11) 84. Rc2+ {[%emt 0:00:10]} Kf3 {[%emt 0:00:27]} (84... Be2 $142 85. Kg5 Rf8) 85. Rc3+ {[%emt 0:00:09]} Ke4 {[%emt 0:00:07]} 86. Kg5 {[%emt 0:00:37]} Rg8+ {[%emt 0:00:25]} 87. Kf6 {[%emt 0:00:13]} Be2 {[%emt 0:01:03]} 88. Ra3 {[%emt 0:04:46]} Bd3 {[%emt 0:02:10]} 89. Ra5 {[%emt 0:00:54]} Ke3 {[%emt 0:00:28]} ({Inferior is} 89... Rxg3 90. Rxf5 Rg8 91. Rg5 $15) 90. Re5+ {[%emt 0:00:55]} Be4 {[%emt 0:00:23] Weighted Error Value: White=0.39/Black=0.18 (very precise)} 0-1